bitfinex/quotes_ETHUSD_20250823
["timestamp","ask_amount","ask_price","bid_price","bid_amount"]
[1755944970799,14.32894024,4727.9,4727.8,0.759]
[1755944971373,0.541,4727.9,4727.8,0.759]
[1755944971589,0.1056,4727.9,4727.8,0.759]
[1755944978022,1.29838079,4729.6,4727.8,0.759]
[1755944978023,0.56783919,4729.0,4727.8,0.759]
[1755944978196,0.1056,4728.3,4727.9,0.4354]
[1755944978389,0.1056,4728.3,4728.2,0.3016]
[1755944978775,0.1056,4728.3,4728.2,0.737]
[1755944979175,0.45485327,4729.0,4728.2,0.737]
[1755944979176,0.1056,4728.5,4728.2,0.737]
[1755944979385,0.1056,4728.5,4728.2,0.3016]
[1755944979598,0.1056,4728.5,4728.3,0.4354]
[1755944979811,0.1056,4728.5,4728.4,0.3016]
[1755944980324,0.1056,4728.5,4728.4,0.737]
[1755944982277,0.1056,4728.7,4728.4,0.737]
[1755944982524,0.1056,4728.7,4728.5,0.4354]
[1755944982818,0.1056,4728.7,4728.6,0.3016]
[1755944983292,0.1056,4728.7,4728.6,0.737]
[1755944985181,0.1056,4729.0,4728.6,0.737]
[1755944985389,0.1056,4729.0,4728.7,0.4354]
[1755944985603,0.1056,4729.0,4728.9,0.3016]
[1755944986115,0.1056,4729.0,4728.9,0.737]
[1755944988394,0.1056,4729.0,4728.9,0.3016]
[1755944989811,0.1056,4729.0,4728.9,0.7693]
[1755944990187,0.1056,4729.0,4728.9,0.3016]
[1755944990388,0.001,4729.1,4728.9,0.7693]
[1755944990910,0.001,4729.1,4729.0,0.4677]
[1755944991112,0.001,4729.1,4729.0,0.7725]
[1755944993915,0.001,4729.1,4728.3,5.209]
[1755944994085,0.001,4729.1,4729.0,0.7725]
[1755944995320,0.001,4729.1,4729.0,0.3048]
[1755944997896,0.001,4729.1,4728.4,0.4677]
[1755945000446,0.001,4729.1,4728.6,0.1056]
[1755945000929,0.001,4729.1,4728.7,0.4677]
[1755945001156,8.97506442,4728.9,4728.6,0.1056]
[1755945001313,0.2997,4728.7,4728.3,1.626]
[1755945001517,0.4395,4728.6,4727.9,3.581]
[1755945001825,0.2997,4728.0,4727.8,0.022]
[1755945002024,0.32997,4727.9,4727.8,0.022]
[1755945002340,1.17477,4727.9,4727.8,0.022]
[1755945002551,13.14983442,4727.9,4727.8,0.022]
[1755945003131,13.23459142,4727.9,4727.8,0.022]
[1755945004932,3.714427,4727.9,4727.8,0.022]
[1755945005134,3.084757,4727.9,4727.8,0.3268]
[1755945005340,3.084757,4727.9,4727.8,0.022]
[1755945005632,3.084757,4727.9,4727.8,0.3268]
[1755945005633,3.0,4727.9,4727.8,0.3268]
[1755945005831,3.0,4727.9,4727.8,0.7945]
[1755945006333,3.0,4727.9,4727.8,0.3268]
[1755945006634,3.16096686,4727.9,4727.8,0.3268]
[1755945007643,3.48553785,4727.9,4727.8,0.022]
[1755945007844,3.78523785,4727.9,4727.8,0.022]
[1755945008063,4.22473785,4727.9,4727.8,0.022]
[1755945008349,3.78523785,4727.9,4727.8,0.022]
[1755945008637,3.48553785,4727.9,4727.8,0.022]
[1755945009758,3.48553785,4727.9,4727.8,0.3268]
[1755945009914,3.16096686,4727.9,4727.8,0.3268]
[1755945011459,3.90016686,4727.9,4727.8,0.022]
[1755945012411,3.98491486,4727.9,4727.8,0.022]
[1755945014867,4.09051486,4727.9,4727.8,0.022]
[1755945015061,4.49956635,4727.9,4727.8,0.022]
[1755945020245,3.76036635,4727.9,4727.8,0.3326]
[1755945020649,3.76036635,4727.9,4727.8,0.022]
[1755945020862,4.05986635,4727.9,4727.8,0.022]
[1755945021037,4.49576635,4727.9,4727.8,0.022]
[1755945023056,4.05986635,4727.9,4727.8,0.022]
[1755945023367,3.76036635,4727.9,4727.8,0.022]
[1755945023833,3.76036635,4727.9,4727.8,0.3326]
[1755945024336,3.76036635,4727.9,4727.8,0.022]
[1755945026439,4.05986635,4727.9,4727.8,0.022]
[1755945027646,4.49576635,4727.9,4727.8,0.022]
[1755945030743,4.05986635,4727.9,4727.8,0.022]
[1755945030942,4.49576635,4727.9,4727.8,0.022]
[1755945031547,4.95114464,4727.9,4727.8,0.022]
[1755945032944,8.52814464,4727.9,4727.8,0.022]
[1755945033143,8.72578225,4727.9,4727.8,0.022]
[1755945034241,8.52814464,4727.9,4727.8,0.022]
[1755945037855,7.68714464,4727.9,4727.8,0.3326]
[1755945038449,7.98664464,4727.9,4727.8,0.022]
[1755945038672,8.09224464,4727.9,4727.8,0.022]
[1755945043259,3.70109315,4727.9,4727.8,0.7732]
[1755945043450,3.16096686,4727.9,4727.8,0.7732]
[1755945043979,0.001,4728.4,4727.8,0.7732]
[1755945044182,0.001,4728.4,4727.9,0.4406]
[1755945044381,0.001,4728.4,4728.3,0.3106]
[1755945044784,0.001,4728.4,4728.3,0.7512]
[1755945045670,0.001,4728.4,4728.3,1.4112]
[1755945046199,0.001,4728.4,4728.3,1.495909]
[1755945047096,0.001,4728.4,4728.3,5.070909]
[1755945047262,0.001,4728.4,4728.3,5.6019919]
[1755945051058,0.001,4728.4,4728.3,2.0269919]
[1755945051300,0.001,4728.4,4728.3,5.069909]
[1755945051463,0.001,4728.4,4728.3,1.495909]
[1755945051670,0.001,4728.4,4728.3,5.069909]
[1755945053393,0.001,4728.4,4728.3,5.175509]
[1755945061505,0.001,4728.4,4728.3,9.435509]
[1755945061836,0.001,4728.4,4728.3,9.3024519]
[1755945062821,0.001,4728.4,4728.3,5.4178519]
[1755945063134,0.001,4728.4,4728.3,7.9376]
[1755945063135,0.7418,4728.4,4728.3,7.9376]
[1755945064607,0.7418,4728.4,4728.3,4.3656]
[1755945064802,0.3067,4728.4,4728.3,4.3656]
[1755945065035,0.7418,4728.4,4728.3,7.9366]
[1755945065504,0.001,4728.4,4728.3,7.9366]
[1755945065706,0.001,4728.4,4728.3,9.45376]
[1755945065934,0.001,4728.4,4728.3,9.55936]
[1755945066843,0.001,4728.4,4728.3,10.21936]
[1755945069151,0.001,4728.4,4728.3,5.95936]
[1755945069312,0.001,4728.4,4728.3,6.24049209]
[1755945069513,0.001,4728.4,4728.3,10.50049209]
[1755945072546,0.001,4728.4,4728.3,10.79765736]
[1755945073758,0.001,4728.4,4728.3,13.79765736]
[1755945075242,0.001,4728.9,4728.4,0.66]
[1755945075437,0.001,4728.9,4728.8,12.92346442]
[1755945075639,0.001,4728.9,4728.8,18.81947027]
[1755945075953,0.001,4728.9,4728.8,19.25457027]
[1755945076141,0.001,4728.9,4728.8,19.33923727]
[1755945076349,0.001,4728.9,4728.8,21.48111527]
[1755945079136,0.001,4729.6,4729.2,0.66]
[1755945079360,0.001,4729.6,4729.3,4.5354]
[1755945079560,0.001,4729.6,4729.3,8.7934]
[1755945079769,0.001,4729.6,4729.3,8.983667]
[1755945079950,0.001,4729.6,4729.3,10.3252337]
[1755945082361,0.001,4729.6,4729.3,9.8820337]
[1755945082557,0.001,4729.6,4729.3,6.3130337]
[1755945082728,0.001,4729.6,4729.3,9.8810337]
[1755945083174,0.001,4729.6,4729.3,10.3242337]
[1755945083415,0.001,4729.6,4729.3,19.5975387]
[1755945088676,0.001,4729.6,4729.3,19.1543387]
[1755945088874,0.001,4729.6,4729.3,18.85609812]
[1755945091757,0.3091,4729.4,4729.3,5.3156337]
[1755945091957,0.7673,4729.4,4729.3,5.3156337]
[1755945092287,0.3091,4729.4,4729.3,5.3156337]
[1755945092762,0.001,4729.4,4729.3,5.3156337]
[1755945093247,0.001,4729.4,4729.3,5.6220337]
[1755945093445,0.001,4729.4,4729.3,5.92027428]
[1755945093674,0.001,4729.4,4729.3,6.36347428]
[1755945093848,0.001,4729.4,4729.3,5.92027428]
[1755945094273,0.001,4729.4,4729.3,6.36347428]
[1755945096146,0.001,4729.4,4729.3,5.92027428]
[1755945097352,0.001,4729.4,4729.3,10.99927428]
[1755945097548,0.001,4729.4,4729.3,11.44247428]
[1755945098581,0.001,4729.4,4729.3,10.99927428]
[1755945099176,0.001,4729.4,4729.3,11.44247428]
[1755945099985,0.001,4729.4,4729.3,11.73963955]
[1755945101175,0.001,4729.4,4729.3,10.99927428]
[1755945101380,0.3091,4729.4,4729.3,10.3946337]
[1755945102008,0.3091,4729.4,4729.3,6.8276337]
[1755945102168,0.3091,4729.4,4729.3,10.3926337]
[1755945102902,0.001,4729.4,4729.3,10.3926337]
[1755945103088,0.001,4729.4,4729.3,10.99727428]
[1755945103293,0.001,4729.4,4729.3,11.44047428]
[1755945103487,0.001,4729.4,4729.3,10.99727428]
[1755945103679,0.001,4729.4,4729.3,11.44047428]
[1755945104082,0.001,4729.4,4729.3,13.99727428]
[1755945104278,0.001,4729.4,4729.3,14.73763955]
[1755945106769,0.001,4729.4,4729.3,16.96663955]
[1755945107106,0.001,4729.4,4729.3,14.73763955]
[1755945108804,0.001,4729.8,4729.7,4.916]
[1755945108992,0.001,4729.8,4729.7,24.64154242]
[1755945109319,0.001,4729.8,4729.7,24.939783]
[1755945109987,0.001,4729.8,4729.7,25.024439]
[1755945114575,0.001,4729.8,4729.7,25.461339]
[1755945114774,0.001,4729.8,4729.7,25.024439]
[1755945121335,0.001,4729.8,4729.7,25.32160427]
[1755945122454,0.3122,4729.8,4729.7,21.146439]
[1755945122751,0.7758,4729.8,4729.7,20.75019842]
[1755945123054,0.7758,4729.8,4729.7,21.41019842]
[1755945130352,0.7758,4729.8,4729.7,12.435134]
[1755945131057,0.7758,4729.8,4729.7,12.350478]
[1755945132957,0.001,4729.8,4729.7,12.664478]
[1755945135159,0.001,4729.8,4729.7,15.96271858]
[1755945135365,0.001,4729.8,4729.7,16.04738158]
[1755945135566,0.001,4729.8,4729.7,15.73338158]
[1755945136329,0.001,4729.8,4729.7,12.17138158]
[1755945136524,0.3122,4729.8,4729.7,9.17138158]
[1755945136831,0.7758,4729.8,4729.7,12.433141]
[1755945139431,0.3122,4729.8,4729.7,12.433141]
[1755945139772,0.001,4729.8,4729.7,13.04108158]
[1755945140743,0.001,4729.8,4729.7,13.49628158]
[1755945140943,0.001,4729.8,4729.7,16.79344685]
[1755945144471,0.001,4729.8,4729.7,16.33824685]
[1755945144973,0.001,4729.8,4729.7,16.33724685]
[1755945145269,0.001,4729.8,4729.7,16.04008158]
[1755945147902,0.001,4729.8,4729.7,21.11908158]
[1755945150071,0.001,4729.8,4729.7,21.57428158]
[1755945150611,0.001,4729.8,4729.7,21.11908158]
[1755945151311,0.001,4729.8,4729.7,21.57428158]
[1755945152380,0.001,4729.8,4729.7,21.11908158]
[1755945152793,0.001,4729.8,4729.7,20.80938158]
[1755945154904,0.3043,4729.8,4729.7,20.80938158]
[1755945155510,0.3043,4729.8,4729.7,17.25038158]
[1755945155705,0.7586,4729.8,4729.7,20.510141]
[1755945155919,0.7586,4729.8,4729.7,13.952141]
[1755945156074,0.7586,4729.8,4729.7,10.452263]
[1755945156422,0.7586,4729.8,4729.7,11.112263]
[1755945156723,0.7586,4729.8,4729.7,10.452263]
[1755945158280,0.7586,4729.8,4729.7,11.112263]
[1755945162212,0.7586,4729.8,4729.7,15.368263]
[1755945165531,0.7586,4729.8,4729.7,6.894263]
[1755945165710,0.7586,4729.8,4729.7,1.815263]
[1755945166078,0.7586,4729.8,4729.7,5.371263]
[1755945166488,0.7586,4729.8,4729.7,5.2866]
[1755945171942,0.3043,4729.8,4729.7,5.2866]
[1755945172104,0.7729,4729.8,4729.7,5.92173]
[1755945174327,0.3043,4729.8,4729.7,5.92173]
[1755945174891,0.7729,4729.8,4729.7,5.92173]
[1755945176242,0.001,4729.8,4729.7,5.92173]
[1755945176421,0.001,4729.8,4729.7,7.374103]
[1755945176744,0.001,4729.8,4729.7,7.908103]
[1755945178420,0.001,4729.8,4729.7,7.479703]
[1755945179536,0.001,4729.8,4729.7,3.618303]
[1755945179723,0.001,4729.8,4729.7,7.173303]
[1755945180243,0.001,4729.8,4729.7,7.478703]
[1755945180419,0.7663,4729.8,4729.7,6.58073]
[1755945180616,0.7663,4729.8,4729.7,3.02573]
[1755945180822,0.7663,4729.8,4729.7,6.58073]
[1755945182036,0.7663,4729.8,4729.7,5.92073]
[1755945182457,0.7663,4729.8,4729.7,2.36573]
[1755945182858,0.7663,4729.8,4729.7,5.2856]
[1755945185767,0.7663,4729.8,4729.7,5.18]
[1755945190470,0.7663,4729.8,4729.7,1.625]
[1755945190668,0.7663,4729.8,4729.7,5.179]
[1755945190968,0.7663,4729.8,4729.7,1.625]
[1755945191181,0.7663,4729.8,4729.7,5.179]
[1755945191402,2.38655244,4729.8,4729.6,0.004]
[1755945191547,0.4686,4729.7,4729.6,0.004]
[1755945191874,0.8709,4729.7,4729.6,0.004]
[1755945198240,1.50624,4729.7,4729.6,0.004]
[1755945198404,1.96778754,4729.7,4729.6,0.004]
[1755945202792,1.96808754,4729.7,4729.6,0.004]
[1755945210148,4.96808754,4729.7,4729.6,0.004]
[1755945216343,1.49918754,4729.7,4729.6,0.004]
[1755945216650,0.74094,4729.7,4729.6,0.2975]
[1755945217028,0.74094,4729.7,4729.6,0.004]
[1755945218942,1.03804,4729.7,4729.6,0.004]
[1755945221750,0.74094,4729.7,4729.6,0.2975]
[1755945221952,0.1056,4729.7,4729.6,0.7402]
[1755945222459,0.001,4729.8,4729.6,0.7402]
[1755945222681,0.001,4729.8,4729.7,0.4427]
[1755945222892,0.001,4729.8,4729.7,0.7362]
[1755945224077,0.001,4729.8,4729.7,0.2935]
[1755945225993,0.2981,4729.8,4729.6,0.004]
[1755945226162,1.09056644,4729.7,4729.6,0.004]
[1755945226358,1.85656644,4729.7,4729.6,0.004]
[1755945226889,5.49194344,4729.7,4729.6,0.004]
[1755945227094,2.49194344,4729.7,4729.6,0.004]
[1755945228194,0.66,4729.6,4729.1,0.004]
[1755945228367,12.28896442,4729.2,4729.1,0.004]
[1755945228573,12.85019749,4729.2,4729.1,0.004]
[1755945228791,13.28489749,4729.2,4729.1,0.004]
[1755945229090,13.56734739,4729.2,4729.1,0.004]
[1755945229297,13.36963349,4729.2,4729.1,0.004]
[1755945229590,14.35459993,4729.2,4729.1,0.004]
[1755945230262,17.90559993,4729.2,4729.1,0.004]
[1755945231991,17.90518141,4729.2,4729.1,0.004]
[1755945232194,20.67970395,4729.2,4729.1,0.004]
[1755945232412,20.87722543,4729.2,4729.1,0.004]
[1755945233260,2.11470276,4728.8,4728.6,0.004]
[1755945233462,6.9705,4728.7,4728.6,0.004]
[1755945233775,7.86041455,4728.7,4728.6,0.004]
[1755945234103,7.94515855,4728.7,4728.6,0.004]
[1755945236493,7.94434993,4728.7,4728.6,0.004]
[1755945236660,11.04406249,4728.7,4728.6,0.004]
[1755945237790,11.70406249,4728.7,4728.6,0.004]
[1755945238360,14.74994471,4728.4,4727.3,0.004]
[1755945238683,19.17485064,4728.4,4727.3,0.004]
[1755945238997,19.69430764,4728.4,4727.3,0.004]
[1755945239197,20.15578518,4728.4,4727.3,0.004]
[1755945239965,18.04090489,4728.4,4727.4,0.4602]
[1755945240391,14.48990489,4728.4,4727.4,0.4602]
[1755945240701,18.04090489,4728.4,4727.4,0.4602]
[1755945241303,18.04090489,4728.4,4728.3,0.2958]
[1755945241304,4.10624047,4728.4,4728.3,0.2958]
[1755945241601,7.20283454,4728.4,4728.3,0.752]
[1755945242492,7.20283454,4728.4,4728.3,0.2958]
[1755945246571,7.20283454,4728.4,4728.3,0.004]
[1755945246808,7.51673454,4728.4,4728.3,0.004]
[1755945247004,7.95143454,4728.4,4728.3,0.004]
[1755945247806,16.92649896,4728.4,4728.3,0.004]
[1755945248603,22.38287445,4728.4,4728.3,0.004]
[1755945250474,22.71382527,4728.4,4728.3,0.004]
[1755945251912,23.98482527,4728.4,4728.3,0.004]
[1755945252106,22.71382527,4728.4,4728.3,0.004]
[1755945252805,22.71382527,4728.4,4727.4,0.004]
[1755945252806,2.888,4728.2,4727.4,0.004]
[1755945252984,12.32136495,4728.2,4727.4,0.004]
[1755945253180,12.51825042,4728.2,4727.4,0.004]
[1755945253483,12.95295042,4728.2,4727.4,0.004]
[1755945253879,13.03772042,4728.2,4727.4,0.004]
[1755945254209,13.49919796,4728.2,4727.4,0.004]
[1755945254376,13.49927532,4728.2,4727.4,0.004]
[1755945254911,13.49924399,4728.2,4727.4,0.004]
[1755945256684,20.49924399,4728.2,4727.4,0.004]
[1755945257213,20.49924399,4728.2,4727.4,0.4602]
[1755945257214,20.63356218,4728.2,4727.4,0.4602]
[1755945257390,18.51859243,4728.2,4727.4,0.004]
[1755945257594,20.63382408,4728.2,4727.5,0.4562]
[1755945258303,20.49950589,4728.2,4727.5,0.4562]
[1755945259834,20.49950589,4728.2,4727.4,0.004]
[1755945260308,20.3769986,4728.2,4727.4,0.004]
[1755945260618,20.8315477,4728.2,4727.4,0.004]
[1755945261990,22.1025477,4728.2,4727.4,0.004]
[1755945262596,22.1025477,4728.2,4727.6,0.004]
[1755945263855,15.80468455,4728.2,4727.6,0.004]
[1755945264033,21.66700548,4728.2,4727.6,0.004]
[1755945264389,21.66701415,4728.2,4727.6,0.004]
[1755945265595,22.13941415,4728.2,4727.6,0.004]
[1755945267127,21.80842624,4728.2,4727.6,0.004]
[1755945267496,21.96360325,4728.2,4727.6,0.004]
[1755945268027,5.00310395,4727.9,4727.6,0.004]
[1755945268239,3.66,4727.6,4727.4,0.004]
[1755945268528,3.66,4727.6,4726.3,0.004]
[1755945268529,5.77555141,4726.9,4726.3,0.004]
[1755945268825,12.00686036,4726.9,4726.3,0.004]
[1755945269014,12.9407379,4726.9,4726.3,0.004]
[1755945269340,13.5935915,4726.9,4726.3,0.004]
[1755945269816,11.47804009,4726.9,4726.3,0.004]
[1755945270014,13.1211915,4726.9,4726.3,0.004]
[1755945270625,10.70884009,4726.9,4726.8,0.3137]
[1755945270827,10.70884009,4726.9,4726.8,0.7462]
[1755945270994,10.70884009,4726.9,4726.8,0.3137]
[1755945271198,10.14077549,4726.9,4726.8,0.3137]
[1755945271622,12.2563269,4726.9,4726.8,0.024]
[1755945271954,10.47183666,4726.9,4726.8,0.3137]
[1755945272150,14.26763666,4726.9,4726.8,0.024]
[1755945272315,7.159,4726.6,4726.3,0.004]
[1755945272645,16.94257337,4726.6,4726.3,0.004]
[1755945272814,19.17057337,4726.6,4726.5,0.2937]
[1755945273014,13.39257337,4726.6,4726.5,0.2937]
[1755945273220,17.40376132,4726.6,4726.5,0.7262]
[1755945273446,17.63919106,4726.6,4726.5,0.7262]
[1755945273751,17.63919106,4726.6,4726.5,0.2937]
[1755945274559,17.63919106,4726.6,4726.5,0.004]
[1755945274765,17.93599106,4726.6,4726.5,0.004]
[1755945275056,22.94905442,4726.6,4726.5,0.004]
[1755945275230,23.5165584,4726.6,4726.5,0.004]
[1755945276954,21.2885584,4726.6,4726.5,0.004]
[1755945278455,14.85367271,4726.6,4726.5,0.2937]
[1755945278648,18.40367271,4726.6,4726.5,0.2937]
[1755945279658,20.5193584,4726.6,4726.5,0.2937]
[1755945279858,14.85367271,4726.6,4726.5,0.2937]
[1755945280164,20.5193584,4726.6,4726.5,0.2937]
[1755945280328,20.28293662,4726.6,4726.5,0.2937]
[1755945281478,20.57973662,4726.6,4726.5,0.004]
[1755945282782,20.38275895,4726.6,4726.5,0.004]
[1755945282985,18.46390722,4726.6,4726.5,0.004]
[1755945283475,18.4638987,4726.6,4726.5,0.004]
[1755945283878,20.28278439,4726.6,4726.5,0.004]
[1755945284052,18.1670987,4726.6,4726.5,0.004]
[1755945284247,20.28278439,4726.6,4726.5,0.004]
[1755945284649,20.57958439,4726.6,4726.5,0.004]
[1755945287252,20.24850219,4726.6,4726.5,0.004]
[1755945287779,19.95170219,4726.6,4726.5,0.2937]
[1755945288986,5.31095208,4726.6,4726.5,0.2937]
[1755945289155,17.8360165,4726.6,4726.5,0.2937]
[1755945289488,20.67850219,4726.6,4726.5,0.004]
[1755945289662,3.66,4726.5,4726.3,0.004]
[1755945289849,10.17235374,4726.4,4726.3,0.004]
[1755945290050,10.04401387,4726.4,4726.3,0.004]
[1755945290459,10.12881487,4726.4,4726.3,0.004]
[1755945290753,10.45992578,4726.4,4726.3,0.004]
[1755945290997,10.48230332,4726.4,4726.3,0.004]
[1755945291300,18.58140332,4726.4,4726.3,0.004]
[1755945291454,21.3769073,4726.4,4726.3,0.004]
[1755945292292,21.37697872,4726.4,4726.3,0.004]
[1755945292855,2.77590952,4726.1,4726.0,0.004]
[1755945293105,2.7761334,4725.6,4725.5,0.004]
[1755945293257,20.86640789,4725.6,4725.5,0.004]
[1755945293576,21.52805494,4725.6,4725.5,0.004]
[1755945293887,21.98953248,4725.6,4725.5,0.004]
[1755945294685,19.87339908,4725.6,4725.5,0.004]
[1755945295291,21.98953248,4725.6,4725.5,0.004]
[1755945296199,19.87339908,4725.6,4725.5,0.004]
[1755945297107,21.14639908,4725.6,4725.5,0.004]
[1755945297306,20.03296681,4725.6,4725.5,0.004]
[1755945297877,19.74526681,4725.6,4725.5,0.004]
[1755945298073,22.43066681,4725.6,4725.5,0.3106]
[1755945298279,26.65249478,4725.6,4725.5,0.7607]
[1755945299243,26.08526681,4725.6,4725.5,0.7607]
[1755945300234,17.00425534,4725.6,4725.5,0.7607]
[1755945300523,0.60966773,4725.6,4725.5,0.7607]
[1755945300728,0.71526773,4725.6,4725.5,0.7607]
[1755945301013,0.26516773,4725.6,4725.5,0.7607]
[1755945301711,0.1056,4725.6,4725.5,0.7607]
[1755945302112,0.26537426,4725.6,4725.5,0.7607]
[1755945302322,0.1056,4725.6,4725.5,0.7607]
[1755945302548,3.1056,4725.6,4725.5,0.3106]
[1755945302700,3.77106,4725.6,4725.5,0.3106]
[1755945303340,3.77106,4725.6,4725.5,0.7607]
[1755945303553,3.26327719,4725.6,4725.5,0.7607]
[1755945303713,0.26327719,4725.6,4725.5,0.7607]
[1755945304250,0.1056,4725.6,4725.5,0.7607]
[1755945306572,0.26740778,4725.6,4725.5,0.7607]
[1755945306853,0.1056,4725.6,4725.5,0.7607]
[1755945307442,0.1056,4725.6,4725.5,0.3106]
[1755945307443,4.3836524,4725.6,4725.5,0.3106]
[1755945307764,3.9423,4725.6,4725.5,0.004]
[1755945307959,4.09965945,4725.6,4725.5,0.004]
[1755945308161,7.99319554,4725.6,4725.5,0.004]
[1755945308735,3.71739554,4725.6,4725.5,0.004]
[1755945309042,3.71739554,4725.6,4725.5,0.3106]
[1755945309243,7.26639554,4725.6,4725.5,0.7607]
[1755945310065,6.81195945,4725.6,4725.5,0.7607]
[1755945311636,7.26641173,4725.6,4725.5,0.3106]
[1755945311849,7.55411173,4725.6,4725.5,0.004]
[1755945312048,7.99321173,4725.6,4725.5,0.004]
[1755945313554,8.65321173,4725.6,4725.5,0.004]
[1755945313876,11.53381268,4725.6,4725.5,0.004]
[1755945314264,11.86497934,4725.6,4725.5,0.004]
[1755945315144,11.29775137,4725.6,4725.5,0.004]
[1755945317287,10.96658471,4725.6,4725.5,0.004]
[1755945318288,0.66,4725.1,4725.0,0.004]
[1755945318484,17.56775561,4725.1,4725.0,0.004]
[1755945318685,18.45080789,4725.1,4725.0,0.004]
[1755945318890,25.53562589,4725.1,4725.0,0.004]
[1755945319056,27.65198321,4725.1,4725.0,0.004]
[1755945319260,27.45474363,4725.1,4725.0,0.004]
[1755945319460,27.65186807,4725.1,4725.0,0.004]
[1755945321057,25.10691075,4725.1,4725.0,0.004]
[1755945322382,24.81531075,4725.1,4725.0,0.2924]
[1755945323793,25.53551075,4725.1,4725.0,0.004]
[1755945324094,27.65186807,4725.1,4725.0,0.004]
[1755945324792,25.53551075,4725.1,4725.0,0.004]
[1755945325908,27.65186807,4725.1,4725.0,0.004]
[1755945326309,12.29124633,4725.1,4725.0,0.004]
[1755945326482,24.81531075,4725.1,4725.0,0.004]
[1755945327308,21.26631075,4725.1,4725.0,0.2924]
[1755945327481,24.81531075,4725.1,4725.0,0.2924]
[1755945327682,27.33491075,4725.1,4725.0,0.004]
[1755945327896,27.76351075,4725.1,4725.0,0.004]
[1755945328113,29.87986807,4725.1,4725.0,0.004]
[1755945328808,29.68274363,4725.1,4725.0,0.004]
[1755945328979,29.87962394,4725.1,4725.0,0.004]
[1755945329186,29.87960059,4725.1,4725.0,0.004]
[1755945329575,29.87959971,4725.1,4725.0,0.004]
[1755945330612,5.11653649,4724.7,4724.5,0.004]
[1755945330814,7.60050836,4724.6,4724.5,0.004]
[1755945331123,16.57557278,4724.6,4724.5,0.004]
[1755945331326,13.28637278,4724.6,4724.5,0.2924]
[1755945331493,16.83837278,4724.6,4724.5,0.735]
[1755945331699,17.92002439,4724.6,4724.5,0.2924]
[1755945331882,18.25123126,4724.6,4724.5,0.2924]
[1755945332227,16.41832357,4724.6,4724.5,0.735]
[1755945332805,15.96387129,4724.6,4724.5,0.735]
[1755945333003,12.41187129,4724.6,4724.5,0.735]
[1755945333201,0.43680687,4724.6,4724.5,0.735]
[1755945333413,0.1056,4724.6,4724.5,0.735]
[1755945334715,0.1056,4724.7,4724.5,0.735]
[1755945334914,0.1056,4724.7,4724.6,0.4426]
[1755945335232,0.1056,4724.7,4724.6,0.731]
[1755945335901,1.628,4725.9,4724.6,0.731]
[1755945336105,1.628,4725.9,4724.7,0.6789]
[1755945336106,0.1056,4725.5,4724.7,0.6789]
[1755945336464,0.1056,4725.5,4725.4,0.2884]
[1755945336727,0.1056,4725.5,4725.4,0.731]
[1755945338261,0.021,4725.8,4725.4,0.8366]
[1755945338392,0.021,4725.8,4725.5,0.4426]
[1755945338593,0.021,4725.8,4725.7,0.394]
[1755945339194,0.021,4725.8,4725.7,0.8366]
[1755945341655,0.021,4725.8,4725.7,0.731]
[1755945341801,0.021,4725.8,4725.7,0.8366]
[1755945347315,0.021,4725.8,4725.7,0.394]
[1755945347518,0.4182,4725.8,4725.3,1.628]
[1755945347716,0.4286,4725.7,4725.0,3.552]
[1755945347949,0.2916,4725.1,4724.9,0.1056]
[1755945348149,0.1056,4725.0,4724.6,1.627]
[1755945348651,0.1056,4725.0,4724.6,2.0602]
[1755945349366,0.1056,4725.0,4724.9,0.3116]
[1755945349524,3.0,4725.7,4724.9,0.3116]
[1755945349730,3.0,4725.7,4724.9,0.7448]
[1755945350321,0.1056,4725.2,4724.9,0.7448]
[1755945350652,0.1056,4725.2,4725.0,0.4332]
[1755945350819,0.1056,4725.2,4725.1,0.3116]
[1755945351020,0.1056,4725.2,4725.1,0.7448]
[1755945352241,0.1056,4725.2,4725.1,0.3116]
[1755945352445,0.1056,4725.2,4724.7,0.4332]
[1755945353025,0.1056,4725.2,4724.6,1.627]
[1755945353559,0.1056,4725.2,4725.1,0.3116]
[1755945353750,0.021,4725.8,4725.1,0.3116]
[1755945353953,0.1056,4725.4,4725.1,0.3116]
[1755945355039,0.1056,4725.4,4725.2,0.4332]
[1755945355350,0.1056,4725.4,4725.3,0.3116]
[1755945355948,0.1056,4725.4,4724.9,0.4332]
[1755945356477,0.1056,4725.4,4725.3,0.3116]
[1755945356685,0.1056,4725.6,4725.3,0.3116]
[1755945357943,0.1056,4725.6,4724.9,0.1056]
[1755945360568,0.021,4725.8,4724.6,1.627]
[1755945360569,0.2881,4725.0,4724.6,1.627]
[1755945360735,0.3937,4725.0,4724.6,1.627]
[1755945360933,0.443,4724.9,4724.6,1.627]
[1755945361169,3.0,4725.7,4724.6,1.627]
[1755945361369,1.64260644,4725.6,4724.8,0.3116]
[1755945361757,0.1056,4724.9,4724.8,0.3116]
[1755945362485,1.19960644,4725.6,4724.8,0.7448]
[1755945362652,0.1056,4725.1,4724.8,0.7448]
[1755945363190,0.1056,4725.1,4724.9,0.4332]
[1755945363390,0.1056,4725.7,4725.0,0.65438]
[1755945363544,0.2881,4725.1,4724.6,1.627]
[1755945363749,0.443,4725.0,4724.6,1.627]